{"text_format":"3","workbook":"xlsx","n_sheets":1,"sheets":["项目库统计表"],"not_rendered":{"defined_names":2},"read":"whole","date_system":"1900"}

{"sheet":"项目库统计表","index":0,"n_rows":214,"n_cols":12,"rows_kept":214,"merged":[[0,0,0,1],[1,0,1,11]]}
["附表：5"]
["封丘县2025年巩固拓展脱贫攻坚成果和乡村振兴项目库统计表"]
["序号","项目名称","项目  类型","建设   性质","实施    地点","建设内容","投资概算（万元）","预期绩效目标","利益联结机制","实施期限","责任单位","产权归属"]
[1,"2025年封丘县鲁岗镇和寨村粉丝生产车间项目","产业发展","新建","鲁岗镇和寨村","新建粉丝车间二层10000平方",990,"车间建成后年产值达15000吨，按市场价每吨1100元，项目实施将带动200人劳动就业岗位，每名工人年收入达7万元。","增加村集体收益，优先带动困难群众就业、增收致富","2025.01-2025.12","农业农村局   鲁岗镇政府","和寨村"]
[2,"2025年封丘县鲁岗镇白店村农资配送中心仓储项目","产业发展","新建","鲁岗镇白店村","用地面积966.7平方米，厂房占地700平方，用途是农资配送和普通货物仓储服务",50,"建成后可带动周边劳动就业，带动物流产业发展，有效解决农资配送问题","增加村集体收益，优先带动困难群众就业、增收致富","2025.01-2025.12","农业农村局  鲁岗镇政府","白店村"]
[3,"2025年封丘县赵岗镇纸房村车间建设项目","产业发展","新建","赵岗镇纸房村","800平方米钢结构化厂房",120,"增加村集体收益，群众满意","增加村集体收益，优先带动困难群众就业、增收致富","2025.01-2025.12","农业农村局赵岗镇人民政府","纸房村"]
[4,"2025年封丘县赵岗镇南常岗村冷库建设项目","产业发展","新建","赵岗镇南常岗村","400立方米",60,"增加村集体收益，群众满意","增加村集体收益，优先带动困难群众就业、增收致富","2025.01-2025.12","农业农村局赵岗镇人民政府","南常岗村"]
[5,"2025年封丘县赵岗镇南常岗村车间建设项目","产业发展","新建","赵岗镇南常岗村","600平方米钢结构化厂房",90,"增加村集体收益，群众满意","增加村集体收益，优先带动困难群众就业、增收致富","2025.01-2025.12","农业农村局赵岗镇人民政府","南常岗村"]
[6,"2025年封丘县赵岗镇罗庄村冷库建设项目","产业发展","新建","赵岗镇罗庄村","400立方米",60,"增加村集体收益，群众满意","增加村集体收益，优先带动困难群众就业、增收致富","2025.01-2025.12","农业农村局赵岗镇人民政府","罗庄村"]
[7,"2025年封丘县赵岗镇铁炉村车间建设项目","产业发展","新建","赵岗镇铁炉村","4200平方米的钢结构化厂房，三层",590,"增加村集体收益，群众满意","增加村集体收益，优先带动困难群众就业、增收致富","2025.01-2025.12","农业农村局赵岗镇人民政府","铁炉村"]
[8,"2025年封丘县赵岗镇马道村车间项目","产业发展","新建","赵岗镇马道村","新建车间1000平方米",160,"增加村集体收益，群众满意","增加村集体收益，优先带动困难群众就业、增收致富","2025.01-2025.12","农业农村局赵岗镇人民政府","马道村"]
[9,"2025年封丘县赵岗镇马道村冷库项目","产业发展","新建","赵岗镇马道村","新建冷库400立方米",150,"增加村集体收益，群众满意","增加村集体收益，优先带动困难群众就业、增收致富","2025.01-2025.12","农业农村局赵岗镇人民政府","马道村"]
[10,"2025年封丘县曹岗乡郭杏头村粮食烘干塔建设项目","产业发展","新建","曹岗乡郭杏头村","新建日烘150吨烘干塔1套、粮库2座、300m³蔬菜冷库",180,"项目实施后10000人直接收益，解决群众7000亩地1000吨粮食，500亩蔬菜储存难问题，推动村级经济合作社有效运转","通过产业发展使村集体增加收入30-40万元，实现带动120人就业增收","2025.01-2025.12","农业农村局曹岗乡人民政府","曹岗乡郭杏头村"]
[11,"2025年封丘县曹岗乡后马常岗村厂房建设项目","产业发展","新建","曹岗乡后马常岗村","新建厂房1300㎡（长100米，宽13米）",200,"项目实后，后马常岗村4200人直接受益，解决村内不能外出务工就业难问题。","村集体增加收入3-5万元，实现带动20-30人就业","2025.01-2025.12","农业农村局曹岗乡人民政府","封丘县曹岗乡后马常岗村"]
[12,"2025年封丘县黄德镇黄德村厂房项目","产业发展","新建","黄德村","新建厂房1200㎡",130,"项目建成后实现每年增加村集体经济收入6万元。直接带动47户128人就业增收，整体带动村集体经济以及全村902户4020人增收。","建立就业务工、带动生产、收益分红等联农带农机制，项目实施后带动全村902户4020人群众增加收入，提高村集体经济收入。","2025.01-2025.12","农业农村局   黄德镇政府","黄德村"]
[13,"2025年封丘县黄德镇开寨村新建厂房项目","产业发展","新建","开寨村","新建厂房1200㎡",150,"项目建成后实现每年增加村集体经济收入5万元。直接带动32户87人就业增收，整体带动村集体经济以及全村320户1528人增收。","建立就业务工、带动生产、收益分红等联农带农机制，项目实施后带动全村320户1528人群众增加收入，提高村集体经济收入。","2025.01-2025.12","农业农村局  黄德镇政府","开寨村"]
[14,"2025年封丘县黄德镇贾庄村加工车间及喷灌设施建设项目","产业发展","新建","贾庄村","新建产业发展金银花产业园喷灌配套设施项目400亩及金银花加工车间3000m³",290,"项目建成后实现每年增加村集体经济收入10万元。直接带动16户34人就业增收，整体带动村集体经济以及全村231户1036人增收。","建立就业务工、带动生产、收益分红等联农带农机制，项目实施后带动全村231户1036人增加收入，提高村集体经济收入。","2025.01-2025.12","农业农村局   黄德镇政府","贾庄村"]
[15,"2025年封丘县黄德镇大庙杨村花色蔬菜挂面生产及烘干包装项目","产业发展","新建","大庙杨村","新建1200㎡厂房及配套设施",100,"项目建成后实现每年增加村集体经济收入3万元。直接带动8户24人就业增收，整体带动村集体经济以及全村73户289人增收。","建立就业务工、带动生产、收益分红等联农带农机制，项目实施后带动全村73户289人增加收入，提高村集体经济收入。","2025.01-2025.12","农业农村局   黄德镇政府","大庙杨村"]
[16,"2025年封丘县李庄镇南曹集村屋顶式光伏发电项目","产业发展","新建","南曹集村","新建光伏10万瓦\n（20万瓦储能）",60,"实现每年增加村集体经济收入3万元。","建立就业务工、收益分红等联农带农机制，项目建成后增加村集体经济收入，带动户就业增收。","2025.01-2025.12","农业农村局李庄镇人民政府","南曹集村"]
[17,"2025年封丘县李庄镇堤湾村产业加工项目","产业发展","新建","堤湾村","数控立车5台，重型数控卧车1台，斜轨刀塔机1台，重型钻床1台及其他配套设备",480,"每年增加村集体经济收入不低于24万元；带动低收入人群就业增收。","增加村集体经济收入；带动群众就业；增加低收入人群收入。","2025.01-2025.12","农业农村局李庄镇人民政府","堤湾村"]
[18,"2025年封丘县潘店镇马庄村乡村振兴就业项目","产业发展","新建","潘店镇马庄村","新建车间长70米、宽20米、1400平方米",150,"项目实施后200户、780人受益","通过乡村建设改善提升农村基础设施水平，带动周边群众共同致富","2025.01-2025.12","农业农村局   潘店镇马庄村","潘店镇马庄村"]
[19,"2025年封丘县城关乡小娄堤村产业配套项目","产业发展","新建","封丘县城关乡小娄堤村","200KVA变压器1台及配套线路600米、提排站2座、排（1.5+0.）*0.85排水渠4000米、φ400波纹管双壁排水管网1000米、小型排水闸10座、喷灌设施3套、5*10桥涵1座、C30厚18cm砼道路2000平方米等",290,"每年增加村集体经济收入3万元，带动解决50人就业增收，直接受益群众506户1443人。","建立就业务工、带动生产、收益分红等联农带农机制，增加50人就业","2025.01-2025.12","农业农村局城关乡人民政府","城关乡"]
[20,"2025年封丘县尹岗镇李堂村蔬菜大棚建设项目","产业发展","新建","尹岗镇李堂村","新建蔬菜大棚5座，占地15亩",200,"项目实施后使村内低收入群众增加收入，提高村集体经济收入，产权归村集体所有","建立就业务工、收益分红等联动带农机制，项目建成后直接带动50余户就业增收，整体带动村集体经济以及全村249户973人增收","2025.01-2025.12","农业农村局  尹岗镇政府","李堂村"]
[21,"2025年封丘县荆隆宫绿色智慧仓储建设项目","产业发展","新建","荆隆宫新区","新建粮库2座，每座5000吨级，及相关配套设备",990,"增加集体收入，带动群众就业。","通过务工就业提高群众参与度，增加收入；通过乡村建设改善提升农村基础设施水平","2025.01-2025.12","农业农村局荆隆宫镇人民政府","荆隆宫镇人民政府"]
[22,"2025年封丘县荆隆宫新区建设标准化厂房项目","产业发展","新建","荆隆宫新区","新建厂房5000平及厂房周边地面硬化、消防排水等配套设施",990,"增加集体收入，带动群众就业","通过务工就业提高群众参与度，增加收入；通过乡村建设改善提升农村基础设施水平","2025.01-2025.12","农业农村局荆隆宫镇人民政府","荆隆宫镇人民政府"]
[23,"2025年封丘县荆隆宫镇后桑园村农产品仓储保鲜冷链基础设施建设项目","产业发展","新建","后桑园村堤北","农产品仓储保鲜冷链基础设施",290,"增加集体收入，带动群众就业。","通过产业发展提升村集体经济，带动低收入群体就业。","2025.01-2025.12","农业农村局荆隆宫镇人民政府","后桑园村"]
[24,"2025年封丘县荆隆宫镇后桑园村酱油生态制作加工业建设项目","产业发展","新建","后桑园村堤北","曲池、酱油发酵罐、成品调配罐、高温灭菌配料罐、净水设备",100,"增加集体收入，带动群众就业。","通过产业发展提升村集体经济，带动低收入群体就业。","2025.01-2025.12","农业农村局荆隆宫镇人民政府","后桑园村"]
[25,"2025年封丘县荆隆宫镇后桑园村醋生态古法制作加工业建设项目","产业发展","新建","后桑园村堤北","多功能液化糖化设备、螺杆泵、高位过滤机、料液存储罐、全自动酿醋机、成品调配罐、高温灭菌机、净水设备",100,"增加集体收入，带动群众就业。","通过产业发展提升村集体经济，带动低收入群体就业。","2025.01-2025.12","农业农村局荆隆宫镇人民政府","后桑园村"]
[26,"2025年封丘县荆隆宫镇后桑园村农产品初加工加工业建设项目。","产业发展","新建","后桑园村堤北","全自动石磨面粉机、全自动碾米机、全自动物理压榨油机、全自动食品粉状包装机、全自动食品液体罐装生产线",200,"增加集体收入，带动群众就业。","通过产业发展提升村集体经济，带动低收入群体就业。","2025.01-2025.12","农业农村局荆隆宫镇人民政府","后桑园村"]
[27,"2025年封丘县荆隆宫镇后钟銮城村种植业基地建设项目","产业发展","新建","后钟銮城村东","塑料棚、钢管支架、灌溉设备、硬化路面3000平方、地磅2台",295,"实现每年增加村集体经济收入30万元。实现带动解决200人就业增收。","建立就业务工、带动生产、收益分红等联农带农机制，项目建成后直接带动100余户就业增收，每户每年增收1万元。","2025.01-2025.12","农业农村局荆隆宫镇人民政府","后钟銮城村"]
[28,"2025年封丘县荆隆宫镇后钟銮城村就业基地建设项目","产业发展","新建","后钟銮城村","帮扶车间3000平方建设",450,"实现每年增加村集体经济收入30万元。实现带动解决220人就业增收。","建立就业务工、带动生产、收益分红等联农带农机制，项目建成后直接带动100余户就业增收，每户每年增收1万元。","2025.01-2025.12","农业农村局荆隆宫镇人民政府","后钟銮城村"]
[29,"2025年封丘县荆隆宫镇前钟銮城村就业基地建设项目","产业发展","新建","前钟銮城村","帮扶车间1200平方建设",150,"实现每年增加村集体经济收入8万元。实现带动解决100人就业增收。","建立就业务工、带动生产、收益分红等联农带农机制，项目建成后直接带动50余户就业增收，每户每年增收1万元。","2025.01-2025.12","农业农村局荆隆宫镇人民政府","前钟銮城村"]
[30,"2025年封丘县荆隆宫镇杨楼村就业基地建设项目","产业发展","新建","杨楼村","帮扶车间3000平方建设",450,"实现每年增加村集体经济收入30万元。实现带动解决220人就业增收。","建立就业务工、带动生产、收益分红等联农带农机制，项目建成后直接带动100余户就业增收，每户每年增收1万元。","2025.01-2025.12","农业农村局荆隆宫镇人民政府","杨楼村"]
[31,"2025年封丘县荆隆宫镇闫寨村就业基地建设项目","产业发展","新建","闫寨村","帮扶车间1000平方建设",150,"实现每年增加村集体经济收入10万元。实现带动解决80人就业增收。","建立就业务工、带动生产、收益分红等联农带农机制，项目建成后直接带动40余户就业增收，每户每年增收1万0元。","2025.01-2025.12","农业农村局荆隆宫镇人民政府","闫寨村"]
[32,"2025年封丘县陈桥镇大贾村厂房建设项目","产业发展","新建","大贾村","新建厂房1200平方米及配套",180,"预计年产生经济效益10.8万元，带动周边低收入群众增加经济收入。","增加村集体经济收入；安置低收入人员务工年收入20000元以上。","2025.01-2025.12","农业农村局陈桥镇人民政府","大贾村"]
[33,"2025年封丘县陈桥镇裴楼村壮大村集体经济项目","产业发展","新建","裴楼村","新建多功能厂房1500平方米。",220,"增加村集体经济收入，带动周边低收入群众增加经济收入。","项目实施后带动帮扶对象增加收入，提高村集体经济收入","2025.01-2025.12","农业农村局陈桥镇人民政府","裴楼村"]
[34,"2025年封丘县陈桥镇陈桥村酱菜厂建设项目","产业发展","新建","陈桥村","酱菜厂规划建设及附属冷库等配套设施建设",480,"项目实施将带动村近百户发展种植解决就业问题等","增加集体产业动力，集体收入增收","2025.01-2025.12","农业农村局陈桥镇人民政府","陈桥"]
[35,"2025年封丘县冯村乡秦淳于村修建冷库仓储1座建设项目","产业发展","新建","秦淳于村","冷库一座：新建冷库1000立方米及配套设施",120,"实现每年增加村集体经济收入3万元。促进大蒜产业发展，实现带动解决20人就业增收。直接受益人口数131户608口人；服务对象满意度96%以上。","建立就业务工、带动生产、收益分红等联农带农机制，项目建成后直接带动20余户就业增收，每户每年增收18000元。","2025.01-2025.12","农业农村局冯村乡政府","冯村乡秦淳于村"]
[36,"2025年封丘县冯村乡大李庄车间建设项目","产业发展","新建","大李庄","新建2000平方车间",280,"通过新建车间309户；1208人就业问题，改善农村生活水平和生活质量，项目建成后产权归属村所有","通过车间建设，建设了村宜居环境，也为贫困户、监测户提供了就业机会增加了收入。","2025.01-2025.12","农业农村局冯村乡政府","大李庄"]
[37,"2025年封丘县冯村乡大里薛车间建设项目","产业发展","新建","大里薛","新建2000平方车间",280,"通过新建车间835户；3287人就业问题，改善农村生活水平和生活质量，项目建成后产权归属村所有","通过车间建设，建设了村宜居环境，也为贫困户、监测户提供了就业机会增加了收入。","2025.01-2025.12","农业农村局冯村乡政府","大里薛"]
[38,"2025年封丘县冯村乡潘固车间建设项目","产业发展","新建","潘固","新建2000平方车间",280,"通过新建车间895户；3769人就业问题，改善农村生活水平和生活质量，项目建成后产权归属村所有","通过车间建设，建设了村宜居环境，也为贫困户、监测户提供了就业机会增加了收入。","2025.01-2025.12","农业农村局冯村乡政府","潘固"]
[39,"2025年封丘县尹岗彭庄村厂房建设项目","产业发展","新建","尹岗镇 彭庄村","新建1300㎡\n厂房",200,"实现每年增加村集体经济收入8万元，实现带动解决80人就业增收。直接受益人口数1200人；服务对象满意度96%以上。","建立就业务工、收益分红等联动带农机制，项目建成后直接带动50余户就业增收，整体带动村集体经济以及全村323户1200人增收","2025.01-2025.12","农业农村局尹岗镇政府","彭庄村"]
[40,"2025年封丘县鲁岗镇白店村厂房建设项目","产业发展","新建","鲁岗镇白店村","建设2000平方米仓储用房",240,"建成后可带动周边劳动就业，带动物流产业发展，有效解决农资配送问题","增加村集体收益，优先带动困难群众就业、增收致富","2025.01-2025.12","农业农村局鲁岗镇政府","白店村"]
[41,"2025年封丘县王村乡农商智慧城农产品检测项目","产业发展","新建","崔王村","三重四极杆气相色谱质谱联用仪、超高效液相色谱-三重串联四极杆质谱联用仪等配套设施",980,"每年为低收入群众分红不低于40万元。","带动低收入群众就业，增加低收入人群收入。","2025.01-2025.12","农业农村局","农商智慧城，股权归村集体所有"]
[42,"2025年封丘县陈桥镇龙霸加工产业项目","产业发展","新建","王村乡火王庄村","压片设备1台及配套设备3套，8通道双下料数粒机1台及配套设备4套，自动灌装设备12台及配套设备6套，净化通风系统1套及配套设施64套，反渗透处理设备1套，包装设备3套，空气压缩设备1套，封闭稀配罐2台及配套设施3套，热收缩设备1台，自动上料设备1套",490,"预计增加陈桥镇46个村村集体收入共计20万左右","增加村集体经济收入，带动低收入人群就业","2025.01-2025.12","封丘县开发区","陈桥镇46个村"]
[43,"2025年封丘县倍好厨速冻食品产业加工项目","产业发展","新建","前方庄","全自动供面、供料系统2套；多道轧延机1套；制冷隧道2条、冷源系统2套，高低压配电系统2套；电动叉车6台；及配套设施。",996,"项目建设运营后，预计可增加69个村集体经济收入39.84万元，让脱贫享受政策户及监测户增加收入。","针对脱贫享受政策户及监测户，通过一定的投入实施的一系列具体措施和项目，在项目实施过程中，建立起各方利益相关方之间的联系和互动，使得项目达到共赢的目的，该项目建成后，能引导群众参与到乡村振兴发展中，增加群众收入，长期受益。产权归村集体所有。","2025.01-2025.12","封丘县工信局","赵岗镇39个村、黄陵镇30个村"]
[44,"2025年封丘县留光镇青堆村产业发展项目","产业发展","新建","青堆村","全自动果酱、果汁加工流水线生产设备及配套设施。",988,"项目建设运营后，预计可增加39个村集体经济收入39.52万元，让脱贫享受政策户及监测户增加收入。","针对脱贫享受政策户及监测户，通过一定的投入实施的一系列具体措施和项目，在项目实施过程中，建立起各方利益相关方之间的联系和互动，使得项目达到共赢的目的，该项目建成后，能引导群众参与到乡村振兴发展中，增加群众收入，长期受益。产权归村集体所有。","2025.01-2025.12","封丘县工信局","冯村乡39个村"]
[45,"2025年封丘县留光镇后寨村创业园智能化车间项目","产业发展","新建","留光镇后寨村","建设1栋厂房，总建筑面积10800平方米。",995,"增加村集体经济收入84万，带动低收入群体就业增收，群众满意。","针对脱贫享受政策户及监测户，建立起各方利益相关方之间的联系和互动，使得项目达到共赢的目的。项目实施后将会引导群众参与到乡村振兴发展中，进一步增加群众就业收入，提高生活质量，长期收益。","2025.01-2025.12","封丘县先进制造业开发区管委会","留光镇28个村、赵岗镇39个村"]
[46,"2025年新乡富元食品有限公司食品加工产业项目","产业发展","新建","王村乡段庄村","建设速冻焖面自动化流水生产线一条及配套；建设速冻预炸油条流水生产线一条及配套。",990,"项目建设运营后，预计可产生经济效益120万元，让脱贫享受政策户及监测户2300户享受奖补，群众对项目实施后效果非常满意。","针对脱贫享受政策户及监测户，通过入股分红方式，建立起各方利益相关方之间的联系和互动，使得项目达到共赢的目的。项目实施后将会引导群众参与到乡村振兴发展中，进一步增加群众就业收入，提高生活质量，长期收益。","2025.01-2025.12","封丘县先进制造业开发区管委会","王村乡47个村、黄德镇26个村、居厢镇19个村、陈固镇23个村"]
[47,"2025年封丘县李庄镇顺河集村屋顶式光伏发电项目","产业发展","新建","李庄镇新区","新建光伏12万瓦",50,"每年增加村集体经济收入不低于4万元；带动低收入人群就业增收。","增加村集体经济收入；带动群众就业；增加低收入人群收入。","2025.01-2025.12","李庄镇人民政府、组织部、农业农村局","顺河集村"]
[48,"2025年封丘县李庄镇三刘寨村屋顶式光伏发电项目","产业发展","新建","李庄镇新区","新建光伏12万瓦",50,"每年增加村集体经济收入不低于4万元；带动低收入人群就业增收。","增加村集体经济收入；带动群众就业；增加低收入人群收入。","2025.01-2025.12","李庄镇人民政府、组织部、农业农村局","三刘寨村"]
[49,"2025年封丘县李庄镇常寨村屋顶式光伏发电项目","产业发展","新建","李庄镇新区","新建光伏10万瓦",50,"每年增加村集体经济收入不低于4万元；带动低收入人群就业增收。","增加村集体经济收入；带动群众就业；增加低收入人群收入。","2025.01-2025.12","李庄镇人民政府、组织部、农业农村局","常寨村"]
[50,"2025年封丘县李庄镇张庄村屋顶式光伏发电项目","产业发展","新建","李庄镇新区","新建光伏10万瓦",50,"每年增加村集体经济收入不低于4万元；带动低收入人群就业增收。","增加村集体经济收入；带动群众就业；增加低收入人群收入。","2025.01-2025.12","李庄镇人民政府、组织部、农业农村局","张庄村"]
[51,"2025年封丘县李庄镇姚庄村屋顶式光伏发电项目","产业发展","新建","李庄镇新区","新建光伏10万瓦\n（21.5万瓦储能）",50,"每年增加村集体经济收入不低于4万元；带动低收入人群就业增收。","增加村集体经济收入；带动群众就业；增加低收入人群收入。","2025.01-2025.12","李庄镇人民政府、组织部、农业农村局","姚庄村"]
[52,"2025年封丘县李庄镇薛郭庄村屋顶式光伏发电项目","产业发展","新建","李庄镇新区","新建光伏12万瓦",50,"每年增加村集体经济收入不低于4万元；带动低收入人群就业增收。","增加村集体经济收入；带动群众就业；增加低收入人群收入。","2025.01-2025.12","李庄镇人民政府、组织部、农业农村局","薛郭庄"]
[53,"2025年封丘县李庄镇南曹村屋顶式光伏发电项目","产业发展","新建","李庄镇新区","新建光伏10万瓦\n（21.5万瓦储能）",50,"每年增加村集体经济收入不低于4万元；带动低收入人群就业增收。","增加村集体经济收入；带动群众就业；增加低收入人群收入。","2025.01-2025.12","李庄镇人民政府、组织部、农业农村局","南曹村"]
[54,"2025年封丘县李庄镇张曹村屋顶式光伏发电项目","产业发展","新建","李庄镇新区","新建光伏10万瓦\n（21.5万瓦储能）",50,"每年增加村集体经济收入不低于4万元；带动低收入人群就业增收。","增加村集体经济收入；带动群众就业；增加低收入人群收入。","2025.01-2025.12","李庄镇人民政府、组织部、农业农村局","张曹村"]
[55,"2025年封丘县城关乡西张庄豆制品加工厂房建设项目","产业发展","新建","西张庄村","新建厂房3000平方米",350,"每年增加村集体经济收入不低于20万元；带动低收入人群就业增收。","增加村集体经济收入；带动群众就业；增加低收入人群收入。","2025.05-2025.12","城关乡人民政府、组织部、农业农村局","汪寨村、水平郭村、拐铺村、西张庄村、大娄堤村、西杨寺村、东杨寺村"]
[56,"2025年封丘县赵岗镇纸房村车间建设项目","产业发展","新建","纸房村","修建建筑面积1800㎡车间并配备设施。",250,"每年增加村集体经济收入不低于15万元；带动低收入人群就业增收。","增加村集体经济收入；带动群众就业；增加低收入人群收入。","2025.01-2025.12","赵岗镇人民政府、组织部、农业农村局","纸房村孙湾村\n李湾村\n翟庄村\n杏园"]
[57,"2025年封丘县陈桥镇产业加工项目","产业发展","新建","杨寨村","建设厂房1500平方",150,"每年增加村集体经济收入不低于10万元；带动低收入人群就业增收。","增加村集体经济收入；带动群众就业；增加低收入人群收入。","2025.05-2025.12","陈桥镇人民政府、组织部、农业农村局","西香湖、杨寨、三合头"]
[58,"2025年封丘县脱贫人口小额信贷贷款贴息项目","产业发展","新建","全县","对脱贫人口(不含已脱贫不再享受政策户）及监测对象（不含致贫风险已消除户）小额贷款的全额贴息",500,"确保已贷出的脱贫人口及监测对象小额贷款享受财政全额贴息","其他收益：\n对已贷出的脱贫人口及监测对象小额贷款的全额贴息","2025.01-2025.12","封丘县金融扶贫服务中心","无"]
[59,"2025年封丘县建档立卡脱贫享受政策人口和风险未消除的监测对象一次性交通补助","就业项目","新建","封丘县","增加脱贫享受政策对象、风险未消除监测对象务工收入，增强脱贫享受政策对象、风险未消除监测对象满意度",150,"带动3000人以上外出务工，省外务工的，补助标准每人500元；市外省内务工的补助标准每人300元；县外市内务工的，补助标准每人200元。","增加脱贫享受政策对象、风险未消除监测对象务工收入，增强脱贫享受政策对象、风险未消除监测对象满意度","2025.01-2025.12","封丘县人社局","无"]
[60,"2025年封丘县雨露计划职业教育补助项目","巩固三保障成果","新建","封丘县","补助全县低收入家庭正在接受职业教育在校生发放补助，减少因贫辍学问题。",510,"补助2133人次低收入家庭正在接受职业教育在校生发放补助，减少因贫辍学问题。","为低收入家庭正在接受职业教育在校生发放补助，减少因贫辍学问题。","2025.01-2025.12","封丘县农业农村局","无"]
[61,"2025年封丘县雨露计划短期技能培训项目","就业项目","新建","封丘县","补助全县通过短期技能培训获得技能证书的低收入劳动力。使他们获得一技之长，增加家庭收入。",510,"补助400人次通过短期技能培训获得技能证书的低收入劳动力。使他们获得一技之长，增加家庭收入。","通过短期技能培训获得技能证书的低收入劳动力。使他们获得一技之长，增加家庭收入。","2025.01-2025.12","封丘县农业农村局","无"]
[62,"2025年封丘县支持享受政策的建档立卡户种植优质强筋小麦补贴项目","产业发展","新建","封丘县","对全县种植优质强筋小麦的享受政策的建档立卡户每亩补贴150元",600,"通过种植优质强筋小麦使享受政策的建档立卡户每亩增收150元。","项目实施将带动低收入人口增加收入，提高乡村经济收入，低收入人群对项目实施后效果非常满意","2025.01-2025.12","封丘县农业农村局","无"]
[63,"2025年封丘县支持新型经营主体流转土地奖补项目","产业发展","新建","封丘县","对经营主体和流出土地享受政策的建档立卡户进行奖补，经营主体每亩补助300元，享受政策的建档立卡户每亩补助200元。",150,"通过土地流转使享受政策的建档立卡户每亩增收200元，经营主体每亩补助300元。","项目实施将带动低收入人口增加收入，增加务工就业机会，群众满意。","2025.01-2025.12","封丘县农业农村局","无"]
[64,"2025年封丘县公益性岗位乡村环境综合治理服务员项目","就业项目","新建","封丘县","为8000多名从事乡村环境综合治理服务员公益性岗位人员发放岗位补贴",3000,"通过安置公益岗位，为建档立卡户且没有在外务工人员和边缘户人员提供就业岗位，既提高了当地公共管理和服务水平，又增加从业人员收入，改善农村人居环境。","通过设置公益岗位，巩固脱贫攻坚成果的一个重要举措，岗位稳定，不仅解决了困难人员的就业问题，也为脱贫人口和边缘户提供了一定的就业机会，改善农村人居环境。","2025.01-2025.12","封丘县农业农村局","无"]
[65,"2025年封丘县鲁岗镇李四河村养殖产业项目","产业发展","新建项目","封丘县鲁岗镇李四河村","自动化温控系统30套，自动化料线4套，定位栏700套，产床200套，猪舍端部隔离间4座，烘干房2座，道路500平方米。",286,"实现每年增加村集体经济收入17.16万元，直接受益37个村。","建立就业务工、带动生产、收益分红等联农带农机制，项目建成后直接带动37个村增收","2025年5月至2025年8月","封丘县农业农村局 鲁岗镇政府","鲁岗镇37个村"]
[66,"2025年封丘县黄德镇蒋西村厂房建设项目","产业发展","新建项目","黄德镇蒋西村","新建厂房1000平方米",100,"项目建成后实现每年增加村集体经济收入5万元。直接带动60人就业增收，整体带动村集体经济以及全村442户1852人增收。","建立就业务工、带动生产、收益分红等联农带农机制，项目实施后带动全村442户1852人增加收入，提高村集体经济收入。","2025年6月 - 2025年11月","农业农村局\n黄德镇人民政府","蒋西村"]
[67,"2025年王村乡岳寨村无土栽培","产业发展","新建","岳寨村","大棚2座1400平方\n冷库500立方",83,"预计项目建成以后会为岳寨村集体带来40万元收入，为村民提供苹果等水果储存提供便利同时带来增收","整体带动村集体经济同时带动岳寨村523户1923口村民增收","2025年5月至2025年12月","农业农村局王村乡人民政府","岳寨村村集体"]
[68,"2025年封丘县黄德镇贾庄村金银花加工车间及仓储建设项目","产业发展","新建","黄德镇贾庄村","新建产业发展金银花加工车间及仓储厂房共计1500平方",150,"项目建成后实现每年增加村集体经济收入8万元。直接带动16户34人就业增收，整体带动村集体经济以及全村231户1036人增收。","建立就业务工、带动生产、收益分红等联农带农机制，项目实施后带动全村231户1036人增加收入，提高村集体经济收入。","2025.04-2025.12","农业农村局\n黄德镇人民政府","贾庄村"]
[69,"2025年封丘县黄德镇王陈庄村厂房建设项目","产业发展","新建","黄德镇王陈庄村","新建厂房2700平方米",270,"项目建成后实现每年增加村集体经济收入15万元。直接带动60人就业增收，整体带动村集体经济以及全村172户735人增收。","建立就业务工、带动生产、收益分红等联农带农机制，项目实施后带动全村172户735人增加收入，提高村集体经济收入。","2025.04-2025.12","农业农村局\n黄德镇人民政府","王陈庄村"]
[70,"2025年封丘县黄德镇后老岸村冷库建设项目","产业发展","新建","黄德镇后老岸村","建设容积为3000立方米的冷库，包含冷库主体建筑、制冷设备安装、保温设施铺设、内部储物架搭建等",180,"项目建成后实现每年增加村集体经济收入不低于4%。直接带动33户61人就业增收，整体带动村集体经济以及全村600户2135人增收。","优先吸纳本村及周边村农户就业；与农户签订农产品储存合作协议，给予优惠储存价格；按比例向村集体分红，提高村集体经济收入。","2025年6月 - 2025年11月","农业农村局\n黄德镇人民政府","后老岸村"]
[71,"2025年封丘县黄德镇小石桥村厂房建设项目","产业发展","新建","黄德镇小石桥村","新建厂房2000平方",200,"项目建成后实现每年增加村集体经济收入10万元。直接带动50人就业增收，整体带动村集体经济以及全村104户529人增收。","建立就业务工、带动生产、收益分红等联农带农机制，项目实施后带动全村172户735人增加收入，提高村集体经济收入。","2025.04-2025.12","农业农村局\n黄德镇人民政府","小石桥村"]
[72,"2025年封丘县城关镇后马台村果蔬仓储项目","产业发展","新建","后马台村","钢结构果蔬仓储，建造1500平方米",120,"预计项目建成以后会为后马台村集体带来10万元收入，为村民提供苹果等水果储存提供便利同时带来增收","整体带动村集体经济同时带动后马台村294户1224人口村民增收","2025.5.-2025.12.","农业农村局城关镇政府","后马台村"]
[73,"2025年封丘县产业类验收项目","项目管理费","新建","封丘县","2025年产业类项目验收费用",30,"项目实施将确保项目正常运行，提高乡村经济收入，低收入人群对项目实施后效果非常满意","项目实施将带动低收入人口增加收入","2025.01-2025.12","封丘县农业农村局","无"]
[74,"2025年封丘县产业类监理项目","项目管理费","新建","封丘县","2025年产业类项目监理费用",30,"项目实施将确保项目正常运行，提高乡村经济收入，低收入人群对项目实施后效果非常满意","项目实施将带动低收入人口增加收入","2025.01-2025.12","封丘县农业农村局","无"]
[75,"2025年封丘县产业类设计清单项目","项目管理费","新建","封丘县","2025年产业类项目设计清单费用",50,"项目实施将确保项目正常运行，提高乡村经济收入，低收入人群对项目实施后效果非常满意","项目实施将带动低收入人口增加收入","2025.01-2025.12","封丘县农业农村局","无"]
[76,"2025年封丘县陈固镇陈固村生活污水治理项目","乡村建设行动","新建","陈固镇陈固村","新建污水管网10617米",212.34,"农村生活污水污染防治水平得到提高，陈固村受益人口2880人。","农村生活污水污染防治水平得到提高，陈固村受益人口2880人。","2025.1-2025.12","新乡市生态环境局封丘分局","陈固镇陈固村"]
[77,"2025年封丘县冯村乡冯村村生活污水治理项目","乡村建设行动","新建","冯村乡冯村村","新建污水管网4955米",99.1,"农村生活污水污染防治水平得到提高，冯村村收益受益人口3166人。","农村生活污水污染防治水平得到提高，冯村村收益农户608户，受益人口3166人。","2025.1-2025.12","新乡市生态环境局封丘分局","冯村乡冯村村"]
[78,"2025年封丘县居厢镇居厢村生活污水治理项目","乡村建设行动","新建","居厢镇居厢村","新建污水管网3345米",66.9,"农村生活污水污染防治水平得到提高，居厢村受益人口3200人.","农村生活污水污染防治水平得到提高，居厢村受益人口3200人.","2025.1-2025.12","新乡市生态环境局封丘分局","居厢镇居厢村"]
[79,"2025年封丘县赵岗镇赵岗村生活污水治理项目","乡村建设行动","新建","赵岗镇赵岗村","新建污水管网12748米",254.96,"农村生活污水污染防治水平得到提高，赵岗村受益人口4556人.","农村生活污水污染防治水平得到提高，赵岗村受益人口4556人.","2025.1-2025.12","新乡市生态环境局封丘分局","赵岗镇赵岗村"]
[80,"2025年封丘县城关乡大娄堤村生活污水治理项目","乡村建设行动","新建","城关乡大娄堤村","新建污水管网8075米",161.5,"农村生活污水污染防治水平得到提高，大娄堤村受益人口1873人。","农村生活污水污染防治水平得到提高，大娄堤村受益人口1874人。","2025.1-2025.12","新乡市生态环境局封丘分局","城关乡大娄堤村"]
[81,"2025年封丘县黄陵镇黄陵村生活污水治理项目","乡村建设行动","新建","黄陵镇黄陵村","新建污水管网2840米",56.8,"农村生活污水污染防治水平得到提高，黄陵村受益人口12316人。","农村生活污水污染防治水平得到提高，黄陵村受益人口12317人。","2025.1-2025.12","新乡市生态环境局封丘分局","黄陵镇黄陵村"]
[82,"2025年封丘县尹岗镇大庄村生活污水治理项目","乡村建设行动","新建","尹岗镇大庄村","新建污水管网14268米",285.36,"农村生活污水污染防治水平得到提高，大庄村受益人口3860人.","农村生活污水污染防治水平得到提高，大庄村受益人口3860人.","2025.1-2025.12","新乡市生态环境局封丘分局","尹岗镇大庄村"]
[83,"2025年封丘县留光镇留光村生活污水治理项目","乡村建设行动","新建","留光镇留光村","新建污水管网10978米",219.56,"农村生活污水污染防治水平得到提高，留光村受益人口5600人.","农村生活污水污染防治水平得到提高，留光村受益人口5600人.","2025.1-2025.12","新乡市生态环境局封丘分局","留光镇留光村"]
[84,"2025年封丘县潘店镇潘店村生活污水治理项目","乡村建设行动","新建","潘店镇潘店村","新建污水管网12049米",240.98,"农村生活污水污染防治水平得到提高，潘店村受益人口3080人。","农村生活污水污染防治水平得到提高，潘店村受益人口3080人。","2025.1-2025.12","新乡市生态环境局封丘分局","潘店镇潘店村"]
[85,"2025年封丘县曹岗乡曹岗村生活污水治理设施建设项目","乡村建设行动","新建","曹岗乡曹岗村","新建污水管网9467米",189.34,"农村生活污水污染防治水平得到提高，曹岗村受益人口2750人。","农村生活污水污染防治水平得到提高，曹岗村受益人口2751人。","2025.1-2025.12","新乡市生态环境局封丘分局","曹岗乡曹岗村"]
[86,"2025年封丘县荆乡回族乡百寺村生活污水治理项目","乡村建设行动","新建","荆乡回族乡百寺村","新建污水管网4800米",96,"农村生活污水污染防治水平得到提高，百寺村受益人口685人。","农村生活污水污染防治水平得到提高，百寺村受益人口685人。","2025.1-2025.12","新乡市生态环境局封丘分局","荆乡回族乡百寺村"]
[87,"2025年封丘县陈固镇陈固村生活污水治理设施建设项目","乡村建设行动","新建","陈固镇陈固村","建设150t/d污水治理设施及配套设施",148,"农村生活污水污染防治水平得到提高，陈固村受益人口2880人。","农村生活污水污染防治水平得到提高，陈固村受益人口2880人。","2025.1-2025.12","新乡市生态环境局封丘分局","陈固镇陈固村"]
[88,"2025年封丘县冯村乡冯村村生活污水治理设施建设项目","乡村建设行动","新建","冯村乡冯村村","建设150t/d污水治理设施及配套设施",138,"农村生活污水污染防治水平得到提高，冯村村收益受益人口3166人。","农村生活污水污染防治水平得到提高，冯村村收益农户608户，受益人口3166人。","2025.1-2025.12","新乡市生态环境局封丘分局","冯村乡冯村村"]
[89,"2025年封丘县居厢镇居厢村生活污水治理设施建设项目","乡村建设行动","新建","居厢镇居厢村","建设150t/d污水治理设施及配套设施",139,"农村生活污水污染防治水平得到提高，居厢村受益人口3200人.","农村生活污水污染防治水平得到提高，居厢村受益人口3200人.","2025.1-2025.12","新乡市生态环境局封丘分局","居厢镇居厢村"]
[90,"2025年封丘县尹岗镇大庄村生活污水治理设施建设项目","乡村建设行动","新建","尹岗镇大庄村","建设150t/d污水治理设施及配套设施",129,"农村生活污水污染防治水平得到提高，大庄村受益人口3860人.","农村生活污水污染防治水平得到提高，大庄村受益人口3860人.","2025.1-2025.12","新乡市生态环境局封丘分局","尹岗镇大庄村"]
[91,"2025年封丘县黄德镇黄德村生活污水治理设施建设项目","乡村建设行动","新建","黄德镇黄德村","建设350t/d污水治理设施及配套设施",235,"农村生活污水污染防治水平得到提高，黄德村受益人口6900人.","农村生活污水污染防治水平得到提高，黄德村受益人口6900人.","2025.1-2025.12","新乡市生态环境局封丘分局","黄德镇黄德村"]
[92,"2025年封丘县留光镇留光村生活污水治理设施建设项目","乡村建设行动","新建","留光镇留光村","建设300t/d污水治理设施及配套设施",233,"农村生活污水污染防治水平得到提高，留光村受益人口5600人.","农村生活污水污染防治水平得到提高，留光村受益人口5600人.","2025.1-2025.12","新乡市生态环境局封丘分局","留光镇留光村"]
[93,"2025年封丘县鲁岗镇鲁岗村生活污水治理设施建设项目","乡村建设行动","新建","鲁岗镇鲁岗村","建设350t/d污水治理设施及配套设施",224,"农村生活污水污染防治水平得到提高，鲁岗村受益人口3460人。","农村生活污水污染防治水平得到提高，鲁岗村受益人口3460人。","2025.1-2025.12","新乡市生态环境局封丘分局","鲁岗镇鲁岗村"]
[94,"2025年封丘县赵岗镇赵岗村生活污水治理设施建设项目","乡村建设行动","新建","赵岗镇赵岗村","建设200t/d污水治理设施及配套设施",155,"农村生活污水污染防治水平得到提高，赵岗村受益人口4556人.","农村生活污水污染防治水平得到提高，赵岗村受益人口4556人.","2025.1-2025.12","新乡市生态环境局封丘分局","赵岗镇赵岗村"]
[95,"2025年封丘县潘店镇潘店村生活污水治理设施建设项目","乡村建设行动","新建","潘店镇潘店村","建设450t/d污水治理设施及配套设施",253,"农村生活污水污染防治水平得到提高，潘店村受益人口3080人。","农村生活污水污染防治水平得到提高，潘店村受益人口3080人。","2025.1-2025.12","新乡市生态环境局封丘分局","潘店镇潘店村"]
[96,"2025年封丘县曹岗乡曹岗村生活污水治理设施建设项目","乡村建设行动","新建","曹岗乡曹岗村","建设1000立方大三格污水处理设施",83,"农村生活污水污染防治水平得到提高，曹岗村受益人口2750人。","农村生活污水污染防治水平得到提高，曹岗村受益人口2751人。","2025.1-2025.12","新乡市生态环境局封丘分局","曹岗乡曹岗村"]
[97,"2025年封丘县城关乡大娄堤村生活污水治理设施建设项目","乡村建设行动","新建","城关乡大娄堤村","建设800立方大三格污水处理设施",67,"农村生活污水污染防治水平得到提高，大娄堤村受益人口1873人。","农村生活污水污染防治水平得到提高，大娄堤村受益人口1874人。","2025.1-2025.12","新乡市生态环境局封丘分局","城关乡大娄堤村"]
[98,"2025年封丘县黄陵镇黄陵村生活污水治理设施建设项目","乡村建设行动","新建","黄陵镇黄陵村","建设400立方大三格污水处理设施",37,"农村生活污水污染防治水平得到提高，黄陵村受益人口12316人。","农村生活污水污染防治水平得到提高，黄陵村受益人口12317人。","2025.1-2025.12","新乡市生态环境局封丘分局","黄陵镇黄陵村"]
[99,"2025年封丘县鲁岗镇官庄村采购生活污水治理双壁波纹管项目","乡村建设行动","新建","鲁岗镇官庄村","HDPE双壁波纹管DN400共1200.93米",6.965394,"农村生活污水污染防治水平得到提高，官庄村受益人口2008人。","农村生活污水污染防治水平得到提高，官庄村受益人口2008人。","2025.6-2025.12","新乡市生态环境局封丘分局","鲁岗镇官庄村"]
[100,"2025年封丘县陈桥镇西赵寨村采购生活污水治理双壁波纹管项目","乡村建设行动","新建","陈桥镇西赵寨村","HDPE双壁波纹管DN400共380米、DN300共2200米",12.434,"农村生活污水污染防治水平得到提高，西赵寨村受益人口1300人。","农村生活污水污染防治水平得到提高，西赵寨村受益人口1300人。","2025.6-2025.12","新乡市生态环境局封丘分局","陈桥镇西赵寨村"]
[101,"2025年封丘县黄陵镇韩寨村采购生活污水治理双壁波纹管项目","乡村建设行动","新建","黄陵镇韩寨村","HDPE双壁波纹管DN300共  1100米",5.115,"农村生活污水污染防治水平得到提高，韩寨村受益人口330人。","农村生活污水污染防治水平得到提高，韩寨村受益人口330人。","2025.6-2025.12","新乡市生态环境局封丘分局","黄陵镇韩寨村"]
[102,"2025年封丘县应举镇镇刘村采购生活污水治理双壁波纹管项目","乡村建设行动","新建","应举镇刘村","HDPE双壁波纹管DN300共  294米",1.3671,"农村生活污水污染防治水平得到提高，刘村受益人口1724人。","农村生活污水污染防治水平得到提高，刘村受益人口1724人。","2025.6-2025.12","新乡市生态环境局封丘分局","应举镇刘村"]
[103,"2025年封丘县尹岗镇于寨村采购生活污水治理双壁波纹管项目","乡村建设行动","新建","尹岗镇于寨村","HDPE双壁波纹管DN400共3000米、DN300共5080米",41.022,"农村生活污水污染防治水平得到提高，于寨村受益人口2136人。","农村生活污水污染防治水平得到提高，于寨村受益人口2136人。","2025.6-2025.12","新乡市生态环境局封丘分局","尹岗镇于寨村"]
[104,"2025年封丘县王村乡前赵寨村采购生活污水治理双壁波纹管项目","乡村建设行动","新建","王村乡前赵寨村","HDPE双壁波纹管DN300共  1800米",8.37,"农村生活污水污染防治水平得到提高，前赵寨村受益人口1117人。","农村生活污水污染防治水平得到提高，前赵寨村受益人口1117人。","2025.6-2025.12","新乡市生态环境局封丘分局","王村乡前赵寨村"]
[105,"2025年封丘县陈固镇东仲宫村采购生活污水治理双壁波纹管项目","乡村建设行动","新建","陈固镇东仲宫村","HDPE双壁波纹管DN400共4033米、DN300共4037.54米",42.16596,"农村生活污水污染防治水平得到提高，受益人口671户3236人。","农村生活污水污染防治水平得到提高，受益人口671户3236人。","2025.6-2025.12","新乡市生态环境局封丘分局","陈固镇东仲宫村"]
[106,"2025年城关乡西河村采购生活污水治理双壁波纹管项目","乡村建设行动","新建","城关乡西河村","HDPE双壁波纹管DN400共2600米",15.08,"农村生活污水污染防治水平得到提高，受益人口800人。","农村生活污水污染防治水平得到提高，受益人口800人。","2025.6-2025.12","新乡市生态环境局封丘分局","城关乡西河村"]
[107,"2025年封丘县冯村乡夏侯村采购生活污水治理双壁波纹管项目","乡村建设行动","新建","冯村乡夏侯村","HDPE双壁波纹管DN400共3000米、DN300共2000米",26.7,"农村生活污水污染防治水平得到提高，夏侯村受益人口1576人。","农村生活污水污染防治水平得到提高，夏侯村受益人口1576人。","2025.6-2025.12","新乡市生态环境局封丘分局","冯村乡夏侯村"]
[108,"2025年封丘县荆隆宫镇坝台村采购生活污水治理双壁波纹管项目","乡村建设行动","新建","荆隆宫镇坝台村","HDPE双壁波纹管DN400共1060米、DN300共2826米",19.2889,"农村生活污水污染防治水平得到提高，坝台村受益人口638人。","农村生活污水污染防治水平得到提高，坝台村受益人口638人。","2025.6-2025.12","新乡市生态环境局封丘分局","荆隆宫镇坝台村"]
[109,"2025年封丘县城关乡小娄底村生活污水治理设施建设项目","乡村建设行动","新建","城关乡小娄底村","建设50t/d污水治理设施及配套设施",56.2,"农村生活污水污染防治水平得到提高，村受益人口2000人。","农村生活污水污染防治水平得到提高，小娄底村受益人口2000人。","2025.6-2025.12","新乡市生态环境局封丘分局","城关乡小娄底村"]
[110,"2025年封丘县冯村乡赵彩村三通一规范污水管网建设项目","乡村建设行动","新建","冯村乡赵彩村","新建村内污水管网4000米",40,"农村生活污水污染防治水平得到提高，受益人口1340人。","农村生活污水污染防治水平得到提高，受益人口1340人。","2025.6-2025.12","新乡市生态环境局封丘分局","冯村乡赵彩村"]
[111,"2025年封丘县潘店镇东辛庄村三通一规范污水管网建设项目","乡村建设行动","新建","潘店镇东辛庄村","建设污水管网3561.37米；",35.6137,"农村生活污水污染防治水平得到提高，受益人口927人。","农村生活污水污染防治水平得到提高，受益人口927人。","2025.6-2025.12","新乡市生态环境局封丘分局","潘店镇东辛庄村"]
[112,"2025年封丘县黄德镇小街村三通一规范污水管网建设项目","乡村建设行动","新建","黄德镇小街村","建设污水管网856.6米",8.566,"农村生活污水污染防治水平得到提高，受益人口620人。","农村生活污水污染防治水平得到提高，受益人口620人。","2025.6-2025.12","新乡市生态环境局封丘分局","黄德镇小街村"]
[113,"2025年封丘县王村乡汤庄村三通一规范污水管网建设项目","乡村建设行动","新建","王村乡汤庄村","建设污水管网1500米",15,"农村生活污水污染防治水平得到提高，受益人口327人。","农村生活污水污染防治水平得到提高，受益人口327人。","2025.6-2025.12","新乡市生态环境局封丘分局","王村乡汤庄村"]
[114,"2025年封丘县尹岗镇西赵岗村三通一规范污水管网建设项目","乡村建设行动","新建","尹岗镇西赵岗村","新建村内污水管网4000米",40,"农村生活污水污染防治水平得到提高，村受益人口910人。","农村生活污水污染防治水平得到提高，村受益人口910人。","2025.6-2025.12","新乡市生态环境局封丘分局","尹岗镇西赵岗村"]
[115,"2025年封丘县冯村乡东王村村三通一规范污水管网建设项目","乡村建设行动","新建","冯村乡东王村村","建设污水管网8136.73米；",81.3673,"农村生活污水污染防治水平得到提高，受益人口2356人。","农村生活污水污染防治水平得到提高，受益人口2356人。","2025.6-2025.12","新乡市生态环境局封丘分局","冯村乡东王村村"]
[116,"2025年封丘县城关乡付庄村三通一规范污水管网建设项目","乡村建设行动","新建","城关乡付庄村","建设污水管网1260米",12.6,"农村生活污水污染防治水平得到提高，受益人口346人。","农村生活污水污染防治水平得到提高，受益人口346人。","2025.6-2025.12","新乡市生态环境局封丘分局","城关乡付庄村"]
[117,"2025年封丘县城关乡西张庄村三通一规范污水管网建设项目","乡村建设行动","新建","城关乡西张庄村","建设污水管网1930米",19.3,"农村生活污水污染防治水平得到提高，受益人口800人。","农村生活污水污染防治水平得到提高，受益人口800人。","2025.6-2025.12","新乡市生态环境局封丘分局","城关乡西张庄村"]
[118,"2025年封丘县赵岗镇前盘丘村三通一规范污水管网建设项目","乡村建设行动","新建","赵岗镇前盘丘村","新建村内污水管网2000米",20,"农村生活污水污染防治水平得到提高，村受益人口1030人。","农村生活污水污染防治水平得到提高，村受益人口1030人。","2025.6-2025.12","新乡市生态环境局封丘分局","赵岗镇前盘丘村"]
[119,"2025年封丘县城关乡臧堂村“三通一规范”污水管网建设项目","乡村建设行动","新建","城关乡臧堂村","修建污水管网3178m",31.78,"农村生活污水污染防治水平得到提高，受益人口1229人。","农村生活污水污染防治水平得到提高，受益人口1229人。","2025.6-2025.12","新乡市生态环境局封丘分局","城关乡臧堂村"]
[120,"2025年封丘县陈固镇西仲宫村三通一规范污水管网建设项目","乡村建设行动","新建","陈固镇西仲宫","建设污水管网2600米",26,"农村生活污水污染防治水平得到提高，受益人口300户2095人。","农村生活污水污染防治水平得到提高，受益人口300户2095人。","2025.6-2025.12","新乡市生态环境局封丘分局","陈固镇西仲宫"]
[121,"2025年封丘县居厢镇河西村农村污水治理项目","乡村建设行动","新建","居厢镇河西村","建设污水管网1112m",11.12,"农村生活污水污染防治水平得到提高，受益人口1198人。","农村生活污水污染防治水平得到提高，受益人口1198人。","2025.6-2025.12","新乡市生态环境局封丘分局","居厢镇河西村"]
[122,"2025年封丘县城关乡后大章村“三通一规范”污水管网建设项目","乡村建设行动","新建","城关乡后大章村","修建污水管网3400m",34,"农村生活污水污染防治水平得到提高，受益人口926人。","农村生活污水污染防治水平得到提高，受益人口926人。","2025.6-2025.12","新乡市生态环境局封丘分局","城关乡后大章村"]
[123,"2025年封丘县王村乡岳寨村三通一规范污水管网建设项目","乡村建设行动","新建","王村乡岳寨村","建设污水管网5835米",58.35,"农村生活污水污染防治水平得到提高，岳寨村受益人口1983人。","农村生活污水污染防治水平得到提高，岳寨村受益人口1983人。","2025.6-2025.12","新乡市生态环境局封丘分局","王村乡岳寨村"]
[124,"2025年封丘县曹岗乡夹堤村三通一规范污水管网建设项目","乡村建设行动","新建","曹岗乡夹堤村","建设污水管网3065米",30.65,"农村生活污水污染防治水平得到提高，夹堤村受益人口1128人。","农村生活污水污染防治水平得到提高，夹堤村受益人口1128人。","2025.6-2025.12","新乡市生态环境局封丘分局","曹岗乡夹堤村"]
[125,"2025年封丘县尹岗镇东杨庄村三通一规范污水管网建设项目","乡村建设行动","新建","尹岗镇东杨庄村","污水管网5400米",54,"农村生活污水污染防治水平得到提高，东杨庄村受益人口2069人。","农村生活污水污染防治水平得到提高，东杨庄村受益人口2069人。","2025.6-2025.12","新乡市生态环境局封丘分局","尹岗镇东杨庄村"]
[126,"2025年封丘县黄德梁庄村三通一规范污水管网建设项目","乡村建设行动","新建","黄德镇梁庄村","建设污水管网2008米",20.08,"农村生活污水污染防治水平得到提高，梁庄村受益人口1280人。","农村生活污水污染防治水平得到提高，梁庄村受益人口1280人。","2025.6-2025.12","新乡市生态环境局封丘分局","黄德梁庄村"]
[127,"2025年封丘县潘店镇东申庄村三通一规范污水管网建设项目","乡村建设行动","新建","潘店镇东申庄村","新建村内污水管网3104.11米",31.0411,"农村生活污水污染防治水平得到提高，东申庄村受益人口751人。","农村生活污水污染防治水平得到提高，东申庄村受益人口751人","2025.6-2025.12","新乡市生态环境局封丘分局","潘店镇东申庄村"]
[128,"2025年封丘县留光镇周庄村三通一规范污水管网建设项目","乡村建设行动","新建","留光镇周庄村","建设污水管网569.26米；",5.6926,"农村生活污水污染防治水平得到提高，受益人口165人。","农村生活污水污染防治水平得到提高，受益人口165人。","2025.6-2025.12","新乡市生态环境局封丘分局","留光镇周庄村"]
[129,"2025年封丘县潘店镇车营村三通一规范污水管网建设项目","乡村建设行动","新建","潘店镇车营村","建设污水管网8500米",85,"农村生活污水污染防治水平得到提高，受益人口3460人。","农村生活污水污染防治水平得到提高，受益人口3460人。","2025.6-2025.12","新乡市生态环境局封丘分局","潘店镇车营村"]
[130,"2025年封丘县尹岗镇东赵岗村三通一规范污水管网建设项目","乡村建设行动","新建","尹岗镇东赵岗村","建设污水管网2500米",25,"农村生活污水污染防治水平得到提高，受益人口521人。","农村生活污水污染防治水平得到提高，受益人口521人。","2025.6-2025.12","新乡市生态环境局封丘分局","尹岗镇东赵岗村"]
[131,"2025年封丘县赵岗镇马圪垱村三通一规范污水管网建设项目","乡村建设行动","新建","赵岗镇马圪垱村","建设污水管网3000米",30,"农村生活污水污染防治水平得到提高，马圪垱村受益人口907人。","农村生活污水污染防治水平得到提高，马圪垱村受益人口907人。","2025.6-2025.12","新乡市生态环境局封丘分局","赵岗镇马圪垱村"]
[132,"2025年封丘县荆隆宫镇雅宝寨村三通一规范污水管网建设项目","乡村建设行动","新建","荆隆宫镇雅宝寨村","建设污水管网8600米",86,"农村生活污水污染防治水平得到提高，雅宝寨村受益人口1599人。","农村生活污水污染防治水平得到提高，雅宝寨村受益人口1599人。","2025.6-2025.12","新乡市生态环境局封丘分局","荆隆宫镇雅宝寨村"]
[133,"2025年封丘县潘店镇李马牧村三通一规范污水管网建设项目","乡村建设行动","新建","潘店镇李马牧村","新建村内污水管网4500米",45,"农村生活污水污染防治水平得到提高，李马牧村受益人口1006人","农村生活污水污染防治水平得到提高，李马牧村受益人口1006人","2025.6-2025.12","新乡市生态环境局封丘分局","潘店镇李马牧村"]
[134,"2025年封丘县赵岗镇铁炉村三通一规范污水管网建设项目","乡村建设行动","新建","赵岗镇铁炉村","建设污水管网5400米",54,"农村生活污水污染防治水平得到提高，铁炉村受益人口1159人。","农村生活污水污染防治水平得到提高，铁炉村受益人口1159人。","2025.6-2025.12","新乡市生态环境局封丘分局","赵岗镇铁炉村"]
[135,"2025年封丘县留光镇\n寺上村三通一规范污水管网建设项目","乡村建设行动","新建","留光镇\n寺上村","新建污水管网4000米",40,"提升农村污水治理水平，解决380户、1600人污水收集处理问题，提升群众幸福感。","农村生活污水污染防治水平得到提高，受益人口1600人。","2025.6-2025.12","新乡市生态环境局封丘分局","留光着寺上村"]
[136,"2025年封丘县黄德演马村三通一规范污水管网建设项目","乡村建设行动","新建","黄德演马村","建设污水管网3500米",35,"农村生活污水污染防治水平得到提高，演马村受益人口1825人。","农村生活污水污染防治水平得到提高，南于村受益人口1825人。","2025.6-2025.12","新乡市生态环境局封丘分局","黄德演马村"]
[137,"2025年封丘县荆隆宫镇小齐寨村三通一规范污水管网建设项目","乡村建设行动","新建","荆隆宫镇小齐寨村","建设污水管网6400米",64,"农村生活污水污染防治水平得到提高，小齐寨村受益人口1841人。","农村生活污水污染防治水平得到提高，小齐寨村受益人口1841人。","2025.6-2025.12","新乡市生态环境局封丘分局","荆隆宫镇小齐寨村"]
[138,"2025年封丘县留光镇\n于庄村三通一规范污水管网建设项目","乡村建设行动","新建","留光镇\n于庄村","新建污水管网2500米",25,"提升农村污水治理水平，解决210户、1260人污水收集处理问题，提升群众幸福感。","农村生活污水污染防治水平得到提高，受益人口1260人。","2025.6-2025.12","新乡市生态环境局封丘分局","留光镇于庄村"]
[139,"2025年封丘县王村乡西洪村三通一规范污水管网建设项目","乡村建设行动","新建","王村乡西洪村","建设污水管网2000米",20,"农村生活污水污染防治水平得到提高，西洪村受益人口907人。","农村生活污水污染防治水平得到提高，西洪村受益人口907人。","2025.6-2025.12","新乡市生态环境局封丘分局","王村乡西洪村"]
[140,"2025年封丘县居厢镇纪店村农村污水治理项目","乡村建设行动","新建","居厢镇纪店村","建设污水管网9000米\n200m³大三格一个",100,"农村生活污水污染防治水平得到提高，受益人口2514人。","农村生活污水污染防治水平得到提高，受益人口2514人。","2025.1-2025.12","新乡市生态环境局封丘分局","居厢镇纪店村"]
[141,"2025年封丘县留光镇\n东王庄村三通一规范污水管网建设项目","乡村建设行动","新建","留光镇\n东王庄村","新建污水管网7500米、合理布局检查井",75,"提升农村污水治理水平，解决214户、1172人污水收集处理问题，提升群众幸福感。","农村生活污水污染防治水平得到提高，受益人口1172人。","2025.1-2025.12","新乡市生态环境局封丘分局","留光镇东王庄村"]
[142,"2025年封丘县冯村乡蔡村三通一规范污水管网建设项目","乡村建设行动","新建","冯村乡蔡村","建设污水管网3000米、100m³大三格1个",35,"农村生活污水污染防治水平得到提高，蔡村受益人口860人","农村生活污水污染防治水平得到提高，蔡村受益人口860人","2025.1-2025.12","新乡市生态环境局封丘分局","冯村乡蔡村"]
[143,"2025年封丘县荆乡回族乡前荆乡村三通一规范污水管网建设项目","乡村建设行动","新建","荆乡回族乡前荆乡村","新建污水管网6000米、合理布局检查井",60,"提升农村污水治理水平，解决569户、2860人污水收集处理问题提升群众幸福感。","农村生活污水污染防治水平得到提高，蔡村受益人口2860人","2025.1-2025.12","新乡市生态环境局封丘分局","荆乡回族乡前荆乡村"]
[144,"2025年封丘县曹岗乡后府村三通一规范污水管网建设项目","乡村建设行动","新建","曹岗乡后府村","建设污水管网5500米",55,"农村生活污水污染防治水平得到提高，后府村受益人口1856人。","农村生活污水污染防治水平得到提高，后府村受益人口1856人。","2025.1-2025.12","新乡市生态环境局封丘分局","曹岗乡后府村"]
[145,"2025年封丘县黄德南于村三通一规范污水管网建设项目","乡村建设行动","新建","黄德南于村","建设污水管网6000米",60,"农村生活污水污染防治水平得到提高，南于村受益人口1428人。","农村生活污水污染防治水平得到提高，南于村受益人口1428人。","2025.1-2025.12","新乡市生态环境局封丘分局","黄德南于村"]
[146,"2025年封丘县荆隆宫镇后桑园村三通一规范大三格建设项目","乡村建设行动","新建","荆隆宫镇后桑园村","建设大三格300立方米",15,"农村生活污水污染防治水平得到提高，后桑园村受益人口3027人。","农村生活污水污染防治水平得到提高，后桑园村受益人口3027人。","2025.1-2025.12","新乡市生态环境局封丘分局","荆隆宫镇后桑园村"]
[147,"2025年封丘县陈桥镇辛西村三通一规范污水管网建设项目","乡村建设行动","新建","陈桥镇辛西村","新建污水管网4620米",46.2,"农村生活污水污染防治水平得到提高，辛西村受益人口1253人。","农村生活污水污染防治水平得到提高，辛西村受益人口1253人。","2025.1-2025.12","新乡市生态环境局封丘分局","陈桥镇辛西村"]
[148,"2025年封丘县冯村乡野城三通一规范污水管网建设项目","乡村建设行动","新建","冯村乡野城","建设污水管网9649米、100m³大三格3个（改厕整体推进村）",111.49,"农村生活污水污染防治水平得到提高，野城受益人口2120人。","农村生活污水污染防治水平得到提高，野城受益人口2120人。","2025.1-2025.12","新乡市生态环境局封丘分局","冯村乡野城"]
[149,"2025年封丘县曹岗乡姚务村三通一规范污水管网建设项目","乡村建设行动","新建","曹岗乡姚务村","建设污水管网2000米",20,"农村生活污水污染防治水平得到提高，姚务村受益人口2896人。","农村生活污水污染防治水平得到提高，姚务村受益人口2896人。","2025.1-2025.12","新乡市生态环境局封丘分局","曹岗乡姚务村"]
[150,"2025年封丘县黄陵镇东孔堂村三通一规范污水管网建设项目","乡村建设行动","新建","黄陵镇东孔堂村","建设污水管网750米",7.5,"农村生活污水污染防治水平得到提高，东孔堂村受益人口100人。","农村生活污水污染防治水平得到提高，东孔堂村受益人口100人。","2025.1-2025.12","新乡市生态环境局封丘分局","黄陵镇东孔堂村"]
[151,"2025年封丘县尹岗镇碾庄村三通一规范污水管网建设项目","乡村建设行动","新建","尹岗镇碾庄村","污水管网5400米",54,"农村生活污水污染防治水平得到提高，碾庄村受益人1800人。","农村生活污水污染防治水平得到提高，碾庄村受益人口1800人。","2025.1-2025.12","新乡市生态环境局封丘分局","尹岗镇碾庄村"]
[152,"2025年封丘县鲁岗镇苌寨村三通一规范污水管网建设项目","乡村建设行动","新建","鲁岗镇苌寨村","建设污水管网550米",5.5,"农村生活污水污染防治水平得到提高，苌寨村受益人口1100人。","农村生活污水污染防治水平得到提高，苌寨村受益人口1100人。","2025.1-2025.12","新乡市生态环境局封丘分局","鲁岗镇罗罗文村"]
[153,"2025年封丘县潘店镇南老庄村三通一规范污水管网建设项目","乡村建设行动","新建","潘店镇南老庄村","新建村内污水管网3200米",32,"农村生活污水污染防治水平得到提高，南老庄村受益人口945人。","农村生活污水污染防治水平得到提高，南老庄村受益人口945人","2025.1-2025.12","新乡市生态环境局封丘分局","潘店镇南老庄村"]
[154,"2025年封丘县赵岗镇孙湾村三通一规范污水管网建设项目","乡村建设行动","新建","赵岗镇孙湾村","建设污水管网3900米",39,"农村生活污水污染防治水平得到提高，孙湾村受益人口1428人。","农村生活污水污染防治水平得到提高，孙湾村受益人口1428人。","2025.1-2025.12","新乡市生态环境局封丘分局","赵岗镇孙湾村"]
[155,"2025年封丘县陈桥镇辛东村三通一规范污水管网建设项目","乡村建设行动","新建","陈桥镇辛东村","新建污水管网3105米",31.05,"农村生活污水污染防治水平得到提高，辛东村受益人口1371人。","农村生活污水污染防治水平得到提高，辛东村受益人口1371人。","2025.1-2025.12","新乡市生态环境局封丘分局","陈桥镇辛东村"]
[156,"2025年封丘县陈固镇东守宫村三通一规范污水管网建设项目","乡村建设行动","新建","陈固镇东守宫村","建设污水管网1650米",16.5,"农村生活污水污染防治水平得到提高，受益人口2463人。","农村生活污水污染防治水平得到提高，受益人口2463人。","2025.1-2025.12","新乡市生态环境局封丘分局","陈固镇东守宫村"]
[157,"2025年封丘县黄陵镇西孔堂村三通一规范污水管网建设项目","乡村建设行动","新建","黄陵镇西孔堂村","建设污水管网400米",4,"农村生活污水污染防治水平得到提高，西孔堂村受益人口585人。","农村生活污水污染防治水平得到提高，西孔堂村受益人口585人。","2025.1-2025.12","新乡市生态环境局封丘分局","黄陵镇西孔堂村"]
[158,"2025年封丘县鲁岗镇罗罗文村三通一规范污水管网建设项目","乡村建设行动","新建","鲁岗镇罗罗文村","建设污水管网500米；",5,"农村生活污水污染防治水平得到提高，罗罗文村受益人口313人。","农村生活污水污染防治水平得到提高，罗罗文村受益人口313人。","2025.1-2025.12","新乡市生态环境局封丘分局","鲁岗镇罗罗文村"]
[159,"2025年封丘县农村生活污水治理项目管理费","项目管理费","新建","封丘县","项目监理费用",38,"加强项目管理，提升项目管理水平","加强项目管理，提升项目管理水平","2025.01-2025.12","新乡市生态环境局封丘分局","无"]
[160,"2025年封丘县曹岗乡后马常岗村道路建设项目","乡村建设行动","新建","后马常岗村","新建道路18cm厚，C30水泥混凝土路面4500平方米",24.75,"进一步改善村民出行问题，受益人口4200人","通过乡村建设，改善、提升农村基础设施水平。","2025.01-2025.12","封丘县交通运输局","后马常岗村"]
[161,"2025年封丘县曹岗乡夹堤村道路建设项目","乡村建设行动","新建","夹堤村","新建道路18cm厚，C30水泥混凝土路面4000平方米",22,"进一步改善村民出行问题，受益人口1128人","通过乡村建设，改善、提升农村基础设施水平。","2025.01-2025.12","封丘县交通运输局","夹堤村"]
[162,"2025封丘县陈固镇三里庄村道路修复项提升项目","乡村建设行动","新建","三里庄村","修复村内道路5厘米厚的柏油路7000平方米",38.5,"有效解决160户群众出行问题","通过乡村建设，改善、提升农村基础设施水平。","2025.01-2025.12","封丘县交通运输局","三里庄村"]
[163,"2025年封丘县陈固镇东守宫村农村道路建设项目","乡村建设行动","新建","东守宫村","新建道路18cm厚，C30水泥混凝土路面4000平方米",22,"有效解决120户群众出行问题","通过乡村建设，改善、提升农村基础设施水平。","2025.01-2025.12","封丘县交通运输局","东守宫村"]
[164,"2025年封丘县陈桥镇马橱寨村道路建设项目","乡村建设行动","新建","马橱寨村","新建道路18cm厚，C30水泥混凝土路面5200平方米",{"$f":"5200*55/10000","v":28.6},"进一步改善村民出行问题，受益人口1486人","通过乡村建设，改善、提升农村基础设施水平。","2025.01-2025.12","封丘县交通运输局","马橱寨村"]
[165,"2025年封丘县陈桥镇下济庙村道路建设项目","乡村建设行动","新建","下济庙村","新建道路沥青罩面厚度5CM，面积7500平方米",41.25,"进一步改善村民出行问题，受益人口674人","通过乡村建设，改善、提升农村基础设施水平。","2025.01-2025.12","封丘县交通运输局","下济庙村"]
[166,"2025年封丘县陈桥镇贺寨村道路建设项目","乡村建设行动","新建","贺寨村","新建道路18cm厚，C30水泥混凝土路面4000平方米",22,"进一步改善村民出行问题，受益人口564人","通过乡村建设，改善、提升农村基础设施水平。","2025.01-2025.12","封丘县交通运输局","贺寨村"]
[167,"2025年封丘县陈桥镇西赵寨村道路建设项目","乡村建设行动","新建","西赵寨村","新建道路18cm厚，C30水泥混凝土路面4000平方米",22,"进一步改善村民出行问题，受益人口1300人","通过乡村建设，改善、提升农村基础设施水平。","2025.01-2025.12","封丘县交通运输局","西赵寨村"]
[168,"2025年封丘县城关乡臧堂村道路建设项目","乡村建设行动","新建","臧堂村","新建道路18cm厚，C30水泥混凝土路面3000平方米",16.5,"进一步改善群众出行问题，受益人口1229人。","通过乡村建设，改善、提升农村基础设施水平。","2025.01-2025.12","封丘县交通运输局","臧堂村"]
[169,"2025年封丘县城关乡后大章村道路建设项目","乡村建设行动","新建","后大章村","新建道路18cm厚，C30水泥混凝土路面4000平方米",{"$f":"4000*55/10000","v":22},"进一步改善群众出行问题，受益人口926人。","通过乡村建设，改善、提升农村基础设施水平。","2025.01-2025.12","封丘县交通运输局","后大章村"]
[170,"2025年封丘县城关乡西河村道路建设项目","乡村建设行动","新建","西河村","新建道路18cm厚，C30水泥混凝土路面4000平方米",22,"进一步改善群众出行问题，受益人口800人。","通过乡村建设，改善、提升农村基础设施水平。","2025.01-2025.12","封丘县交通运输局","西河村"]
[171,"2025年封丘县冯村乡夏侯村道路建设项目","乡村建设行动","新建","夏侯村","新建道路18cm厚，C30水泥混凝土路面7000平方米",{"$f":"7000*55/10000","v":38.5},"进一步改善村民出行问题，受益人口1576人","通过乡村建设，改善、提升农村基础设施水平。","2025.01-2025.12","封丘县交通运输局","夏侯村"]
[172,"2025年封丘县冯村乡田淳于村道路建设项目","乡村建设行动","新建","田淳于村","新建道路18cm厚，C30水泥混凝土路面5000平方米",{"$f":"5000*55/10000","v":27.5},"进一步改善村民出行问题，受益人口1050人","通过乡村建设，改善、提升农村基础设施水平。","2025.01-2025.12","封丘县交通运输局","田淳于村"]
[173,"2025年封丘县黄德镇演马村道路建设项目","乡村建设行动","新建","演马村","新建道路18cm厚，C30水泥混凝土路面5000平方米",{"$f":"5000*55/10000","v":27.5},"进一步改善村民出行问题，受益人口1825人","通过乡村建设，改善、提升农村基础设施水平。","2025.01-2025.12","封丘县交通运输局","演马村"]
[174,"2025年封丘县黄德镇小街村道路建设项目","乡村建设行动","新建","小街村","新建道路18cm厚，C30水泥混凝土路面4000平方米",{"$f":"4000*55/10000","v":22},"进一步改善村民出行问题，受益人口620人","通过乡村建设，改善、提升农村基础设施水平。","2025.01-2025.12","封丘县交通运输局","小街村"]
[175,"2025年封丘县黄德镇梁庄村道路建设项目","乡村建设行动","新建","梁庄村","新建道路18cm厚，C30水泥混凝土路面5000平方米",27.5,"进一步改善村民出行问题，受益人口1280人","通过乡村建设，改善、提升农村基础设施水平。","2025.01-2025.12","封丘县交通运输局","梁庄村"]
[176,"2025年封丘县黄德镇文岩村道路建设项目","乡村建设行动","新建","文岩村","新建道路18cm厚，C30水泥混凝土路面2300平方米",12.65,"进一步改善村民出行问题，受益人口322人","通过乡村建设，改善、提升农村基础设施水平。","2025.01-2025.12","封丘县交通运输局","文岩村"]
[177,"2025年封丘县荆隆宫镇水驿村道路建设项目","乡村建设行动","新建","水驿村","新建道路18cm厚，C30水泥混凝土路面6500平方米",35.75,"进一步改善村民出行问题，受益人口2466人","通过乡村建设，改善、提升农村基础设施水平。","2025.01-2025.12","封丘县交通运输局","水驿村"]
[178,"2025年封丘县荆隆宫镇北孙庄村道路建设项目","乡村建设行动","新建","北孙庄村","新建道路18cm厚，C30水泥混凝土路面4000平方米",22,"进一步改善村民出行问题，受益人口418人","通过乡村建设，改善、提升农村基础设施水平。","2025.01-2025.12","封丘县交通运输局","北孙庄村"]
[179,"2025年封丘县荆隆宫镇陈寨村道路建设项目","乡村建设行动","新建","陈寨村","新建道路18cm厚，C30水泥混凝土路面3500平方米",{"$f":"3500*55/10000","v":19.25},"进一步改善村民出行问题，受益人口1050人","通过乡村建设，改善、提升农村基础设施水平。","2025.01-2025.12","封丘县交通运输局","陈寨村"]
[180,"2025年封丘县荆隆宫镇铁坡村道路建设项目","乡村建设行动","新建","铁坡村","新建道路18cm厚，C30水泥混凝土路面3000平方米",{"$f":"3000*55/10000","v":16.5},"进一步改善村民出行问题，受益人口1050人","通过乡村建设，改善、提升农村基础设施水平。","2025.01-2025.12","封丘县交通运输局","铁坡村"]
[181,"2025年封丘县荆隆宫镇后桑园村道路建设项目","乡村建设行动","新建","后桑园村","新建道路18cm厚，C30水泥混凝土路面5200平方米",28.6,"进一步改善村民出行问题，受益人口1800人","通过乡村建设，改善、提升农村基础设施水平。","2025.01-2025.12","封丘县交通运输局","后桑园村"]
[182,"2025年封丘县居厢镇河西村道路建设项目","乡村建设行动","新建","河西村","新建道路18cm厚，C30水泥混凝土路面4000平方米",22,"进一步改善村民出行问题，受益人口1198人。","通过乡村建设，改善、提升农村基础设施水平。","2025.01-2025.12","封丘县交通运输局","河西村"]
[183,"2025年封丘县居厢镇纪店村道路建设项目","乡村建设行动","新建","纪店村","新建道路18cm厚，C30水泥混凝土路面4000平方米",22,"进一步改善村民出行问题，受益人口1198人。","通过乡村建设，改善、提升农村基础设施水平。","2025.01-2025.12","封丘县交通运输局","纪店村"]
[184,"2025年鲁岗镇官庄村道路建设项目","乡村建设行动","新建","官庄村","新建道路18cm厚，C30水泥混凝土路面4000平方米",22,"进一步改善村民出行问题，受益人口1974人","通过乡村建设，改善、提升农村基础设施水平。","2025.01-2025.12","封丘县交通运输局","官庄村"]
[185,"2025年封丘县鲁岗镇苌寨村道路建设项目","乡村建设行动","新建","苌寨村","新建道路18cm厚，C30水泥混凝土路面4000平方米",{"$f":"4000*55/10000","v":22},"进一步改善村民出行问题，受益人口1100人","通过乡村建设，改善、提升农村基础设施水平。","2025.01-2025.12","封丘县交通运输局","苌寨村"]
[186,"2025年封丘县鲁岗镇东蒋寨村道路建设项目","乡村建设行动","新建","东蒋寨村","新建道路18cm厚，C30水泥混凝土路面2500平方米",{"$f":"2500*55/10000","v":13.75},"进一步改善村民出行问题，受益人口820人","通过乡村建设，改善、提升农村基础设施水平。","2025.01-2025.12","封丘县交通运输局","东蒋寨村"]
[187,"2025年封丘县鲁岗镇李四河村道路建设项目","乡村建设行动","新建","李四河村","新建道路18cm厚，C30水泥混凝土路面5000平方米",{"$f":"5000*55/10000","v":27.5},"进一步改善村民出行问题，受益人口1820人","通过乡村建设，改善、提升农村基础设施水平。","2025.01-2025.12","封丘县交通运输局","李四河村"]
[188,"2025年封丘县潘店镇车营村道路建设项目","乡村建设行动","新建","车营村","新建道路18cm厚，C30水泥混凝土路面5000平方米",{"$f":"5000*55/10000","v":27.5},"进一步改善村民出行问题，受益人口3455人","通过乡村建设，改善、提升农村基础设施水平。","2025.01-2025.12","封丘县交通运输局","车营村"]
[189,"2025年封丘县潘店镇贾色村道路建设项目","乡村建设行动","新建","贾色村","新建道路18cm厚，C30水泥混凝土路面1500平方米",{"$f":"1500*55/10000","v":8.25},"进一步改善村民出行问题，受益人口820人","通过乡村建设，改善、提升农村基础设施水平。","2025.01-2025.12","封丘县交通运输局","贾色村"]
[190,"2025年封丘县潘店镇老薛庄村道路建设项目","乡村建设行动","新建","老薛庄村","新建道路18cm厚，C30水泥混凝土路面6000平方米",{"$f":"6000*55/10000","v":33},"进一步改善村民出行问题，受益人口622人","通过乡村建设，改善、提升农村基础设施水平。","2025.01-2025.12","封丘县交通运输局","老薛庄村"]
[191,"2025年封丘县潘店镇断堤村道路建设项目","乡村建设行动","新建","断堤村","新建道路18cm厚，C30水泥混凝土路面6000平方米",33,"进一步改善村民出行问题，受益人口3175人","通过乡村建设，改善、提升农村基础设施水平。","2025.01-2025.12","封丘县交通运输局","断堤村"]
[192,"2025年封丘县王村乡前赵寨村道路建设项目","乡村建设行动","新建","前赵寨村","新建道路18cm厚，C30水泥混凝土路面500平方米",{"$f":"500*55/10000","v":2.75},"进一步改善村民出行问题，受益人口1175人","通过乡村建设，改善、提升农村基础设施水平。","2025.01-2025.12","封丘县交通运输局","前赵寨村"]
[193,"2025年封丘县王村乡大马寨村道路建设项目","乡村建设行动","新建","大马寨村","新建道路18cm厚，C30水泥混凝土路面3000平方米",16.5,"进一步改善村民出行问题，受益人口2016人","通过乡村建设，改善、提升农村基础设施水平。","2025.01-2025.12","封丘县交通运输局","大马寨村"]
[194,"2025年封丘县王村乡后大寺村道路建设项目","乡村建设行动","新建","后大寺村","新建道路18cm厚，C30水泥混凝土路面4000平方米",22,"进一步改善村民出行问题，受益人口950人","通过乡村建设，改善、提升农村基础设施水平。","2025.01-2025.12","封丘县交通运输局","后大寺村"]
[195,"2025年封丘县尹岗乡东杨庄村道路建设项目","乡村建设行动","新建","东杨庄","新建道路18cm厚，C30水泥混凝土路面6000平方米",{"$f":"6000*55/10000","v":33},"进一步改善村民出行问题，受益人口950人","通过乡村建设，改善、提升农村基础设施水平。","2025.01-2025.12","封丘县交通运输局","东杨庄"]
[196,"2025年封丘县尹岗镇陈岗村道路建设项目","乡村建设行动","新建","陈岗村","新建道路18cm厚，C30水泥混凝土路面4000平方米",{"$f":"4000*55/10000","v":22},"进一步改善村民出行问题，受益人口320人","通过乡村建设，改善、提升农村基础设施水平。","2025.01-2025.12","封丘县交通运输局","陈岗村"]
[197,"2025年封丘县尹岗镇彭庄村道路建设项目","乡村建设行动","新建","彭庄村","新建道路18cm厚，C30水泥混凝土路面1000平方米",{"$f":"1000*55/10000","v":5.5},"进一步改善村民出行问题，受益人口320人","通过乡村建设，改善、提升农村基础设施水平。","2025.01-2025.12","封丘县交通运输局","彭庄村"]
[198,"2025年封丘县赵岗镇马圪垱村道路建设项目","乡村建设行动","新建","马圪垱村","新建道路18cm厚，C30水泥混凝土路面4000平方米",22,"进一步改善村民出行问题，受益人口960人","通过乡村建设，改善、提升农村基础设施水平。","2025.01-2025.12","封丘县交通运输局","马圪垱村"]
[199,"2025年封丘县留光镇李王庄村农村道路建设项目","乡村建设行动","新建","留光镇\n李王庄村","新修柏油道路，厚度5cm，7000平方米",{"$f":"7000*55/10000","v":38.5},"进一步改善村民出行问题，受益人口2920人","通过乡村建设，改善、提升农村基础设施水平。","2025.01-2025.12","封丘县交通运输局","留光镇\n李王庄村"]
[200,"2025年封丘县留光镇赵庄村农村道路建设项目","乡村建设行动","新建","留光镇\n赵庄村","新修柏油道路，厚度5cm，7000平方米",{"$f":"7000*55/10000","v":38.5},"进一步改善村民出行问题，受益人口623人","通过乡村建设，改善、提升农村基础设施水平。","2025.01-2025.12","封丘县交通运输局","留光镇\n赵庄村"]
[201,"2025年封丘县留光镇小李庄村农村道路建设项目","乡村建设行动","新建","留光镇小李庄村","新建道路18cm厚，C30水泥混凝土路面5000平方米",{"$f":"5000*55/10000","v":27.5},"进一步改善村民出行问题，受益人口1197人","通过乡村建设，改善、提升农村基础设施水平。","2025.01-2025.12","封丘县交通运输局","留光镇小李庄村"]
[202,"2025年封丘县应举镇雅铺村道路建设项目","乡村建设行动","新建","应举镇雅铺村","新建道路18cm厚，C30水泥混凝土路面4800平方米",{"$f":"3000*55/10000","v":16.5},"进一步改善村民出行问题，受益人口467人","通过乡村建设，改善、提升农村基础设施水平。","2025.01-2025.12","封丘县交通运输局","应举镇雅铺村"]
[203,"2025年封丘县应举镇石楼村道路建设项目","乡村建设行动","新建","应举镇石楼村","新建道路18cm厚，C30水泥混凝土路面3000平方米",16.5,"进一步改善村民出行问题，受益人口467人","通过乡村建设，改善、提升农村基础设施水平。","2025.01-2025.12","封丘县交通运输局","应举镇石楼村"]
[204,"2025年封丘县应举镇刘村道路建设项目","乡村建设行动","新建","应举镇刘村","新建道路18cm厚，C30水泥混凝土路面1200平方米",16.5,"进一步改善村民出行问题，受益人口877人","通过乡村建设，改善、提升农村基础设施水平。","2025.01-2025.12","封丘县交通运输局","应举镇刘村"]
[205,"2025年封丘县潘店镇东辛庄村道路建设项目","乡村建设行动","新建","东辛庄村","新建道路18cm厚，C30水泥混凝土路面5000平方米",{"$f":"5000*55/10000","v":27.5},"进一步改善村民出行问题，受益人口927人","通过乡村建设，改善、提升农村基础设施水平。","2025.01-2025.12","封丘县交通运输局","东辛庄村"]
[206,"2025年封丘县潘店镇崔庄村道路建设项目","乡村建设行动","新建","崔庄村","新建道路18cm厚，C30水泥混凝土路面6000平方米",{"$f":"6000*55/10000","v":33},"进一步改善村民出行问题，受益人口868人","通过乡村建设，改善、提升农村基础设施水平。","2025.01-2025.12","封丘县交通运输局","崔庄村"]
[207,"2025年封丘县尹岗镇于寨村道路建设项目","乡村建设行动","新建","于寨村","新建道路18cm厚，C30水泥混凝土路面6000平方米",{"$f":"6000*55/10000","v":33},"进一步改善村民出行问题，受益人口数558人","通过乡村建设，改善、提升农村基础设施水平。","2025.01-2025.12","封丘县交通运输局","于寨村"]
[208,"2025年封丘县潘店镇东申庄村道路建设项目","乡村建设行动","新建","东申庄村","新建道路18cm厚，C30水泥混凝土路面5000平方米",{"$f":"5000*55/10000","v":27.5},"进一步改善村民出行问题，受益人1469口人","通过乡村建设，改善、提升农村基础设施水平。","2025.01-2025.12","封丘县交通运输局","东申庄村"]
[209,"2025年封丘县城关乡付庄村道路建设项目","乡村建设行动","新建","付庄村","新建道路18cm厚，C30水泥混凝土路面4000平方米",22,"进一步改善村民出行问题，受益人口799人","通过乡村建设，改善、提升农村基础设施水平。","2025.01-2025.12","封丘县交通运输局","付庄村"]
[210,"2025年封丘县王村乡北孟庄村道路建设项目","乡村建设行动","新建","北孟庄","新建道路18cm厚，C30水泥混凝土路面1900平方米",10.45,"进一步改善群众出行问题，受益人口633人。","通过乡村建设，改善、提升农村基础设施水平。","2025.01-2025.12","封丘县交通运输局","北孟庄"]
[211,"2025年封丘县道路建设项目管理费","项目管理费","新建","封丘县","监理费、项目工程设计费用",13,"加强项目管理，提升项目管理水平","加强项目管理，提升项目管理水平","2025.01-2025.12","封丘县交通运输局","无"]